bitfinex-derivatives/quotes_ETHF0:USTF0_20251119
["timestamp","ask_amount","ask_price","bid_price","bid_amount"]
[1763587387508,6.35819497,2985.6,2980.7,1.419]
[1763587387509,3.2078,2988.9,2987.4,0.338]
[1763587387711,3.2078,2992.0,2989.1,3.2078]
[1763587388009,1.0635,2995.2,2987.5,70.252]
[1763587388010,1.1482,2993.9,2991.9,3.03519497]
[1763587388314,0.00501671,2993.2,2993.0,3.03519497]
[1763587388613,0.8092,2993.9,2993.0,3.03888267]
[1763587388807,0.8092,2993.9,2993.3,3.6185604]
[1763587389009,0.8092,2993.9,2993.1,40.8]
[1763587389310,1.0635,2995.2,2993.8,3.2078]
[1763587389510,1.0635,2995.2,2995.1,3.2078]
[1763587389711,1.06653708,2995.2,2995.1,2.53643783]
[1763587390310,1.0635,2996.5,2995.4,2.13625483]
[1763587390616,1.0635,2996.5,2996.4,3.2078]
[1763587391111,1.0635,2996.5,2996.4,2.55043393]
[1763587391312,1.0670832,2996.5,2996.4,2.55043393]
[1763587391910,1.0670832,2996.5,2996.4,2.09224643]
[1763587392508,0.0035832,2996.5,2996.4,2.09224643]
[1763587392706,1.1482,2997.8,2996.4,3.2078]
[1763587392915,1.1482,2997.8,2997.5,3.2078]
[1763587393210,1.1482,2997.8,2997.5,2.740259]
[1763587393809,6.0,2997.7,2997.4,3.20780809]
[1763587394010,3.2078,2997.5,2995.8,3.2078]
[1763587394207,3.2078,2996.7,2995.9,3.2078]
[1763587394515,3.2078,2996.0,2995.1,3.2078]
[1763587394718,3.2078,2995.5,2994.0,1.0693]
[1763587394910,0.00500809,2995.0,2994.6,3.2078]
[1763587395106,0.00500809,2995.0,2994.9,3.2078]
[1763587395813,15.64100809,2995.0,2994.5,8.09e-06]
[1763587396007,3.2078,2994.6,2994.5,8.09e-06]
[1763587396211,3.2078,2994.6,2993.0,3.2078]
[1763587396408,3.2078,2994.2,2993.3,3.2078]
[1763587396610,3.2078,2994.6,2993.7,3.2078]
[1763587396816,0.00500809,2995.0,2993.1,3.6185604]
[1763587396817,3.21280809,2995.0,2994.1,3.2078]
[1763587397014,3.2078,2996.2,2994.9,3.2078]
[1763587397217,53.528,3000.5,2994.1,3.2078]
[1763587397218,3.2078,2995.5,2994.1,3.2078]
[1763587397411,3.2078,2994.6,2994.0,4.3814]
[1763587397614,3.2078,2996.1,2994.3,3.2078]
[1763587397814,3.2078,2996.5,2995.7,3.2078]
[1763587398119,3.21280809,2996.4,2995.8,3.21280809]
[1763587398510,0.00500809,2996.4,2996.1,3.2078]
[1763587398712,3.21280809,2996.4,2995.8,0.00500809]
[1763587398915,0.00500809,2996.4,2995.8,0.00500809]
[1763587399117,0.00500809,2996.4,2995.9,3.2078]
[1763587399319,3.21280809,2996.4,2995.8,0.00500809]
[1763587399514,0.00500809,2996.4,2995.8,0.00500809]
[1763587399708,0.00500809,2996.4,2995.8,3.21280809]
[1763587400316,3.2078,2996.0,2995.7,0.00393169]
[1763587400618,0.00500809,2996.4,2995.9,3.2078]
[1763587400824,3.21280809,2996.4,2995.7,3.21173169]
[1763587401012,0.00500809,2996.4,2995.9,3.2078]
[1763587401319,3.2078,2996.2,2995.9,0.00500809]
[1763587401528,3.2078,2996.2,2995.9,8.09e-06]
[1763587401827,3.2078,2996.0,2995.9,8.09e-06]
[1763587402132,8.09045013,2996.0,2994.4,3.2078]
[1763587402324,1.0025529,2996.0,2995.9,6.8263604]
[1763587402526,3.2078,2997.4,2995.9,6.8263604]
[1763587402721,0.5409,2998.4,2996.3,3.2078]
[1763587402921,3.2078,2997.5,2996.2,3.2078]
[1763587403130,3.2078,2997.2,2996.2,3.2078]
[1763587403432,0.00500809,2997.0,2996.5,3.2078]
[1763587403620,0.00500809,2997.0,2996.4,0.00500809]
[1763587403828,0.00500809,2997.0,2996.7,3.2078]
[1763587404026,0.00500809,2997.0,2996.4,3.21280809]
[1763587404333,0.00500809,2997.0,2996.4,0.00500809]
[1763587404529,3.2078,2996.5,2995.8,3.2078]
[1763587404826,3.2078,2996.9,2996.0,3.2078]
[1763587405026,3.2078,2996.1,2995.4,3.2078]
[1763587405222,3.2078,2995.5,2994.7,3.2078]
[1763587405423,3.2078,2995.8,2995.0,3.2078]
[1763587405630,0.00500809,2995.7,2995.1,0.00499619]
[1763587406129,3.2078,2995.4,2995.1,0.00499619]
[1763587406328,0.00500809,2995.7,2995.1,0.00499619]
[1763587406540,0.00500809,2995.7,2993.8,0.54171]
[1763587406541,3.2078,2995.2,2994.2,3.2078]
[1763587406737,3.2078,2994.3,2993.6,3.2078]
[1763587406935,3.2078,2994.6,2993.6,3.6185604]
[1763587407143,3.2078,2994.6,2993.7,3.2078]
[1763587407439,3.2078,2994.7,2993.7,3.2078]
[1763587407640,0.00500809,2994.5,2994.1,3.2078]
[1763587408039,3.2078,2994.2,2993.7,0.00423404]
[1763587408240,3.2078,2993.8,2993.7,0.00423404]
[1763587408438,3.2078,2993.8,2993.7,1e-08]
[1763587408635,3.2078,2994.1,2993.7,1e-08]
[1763587409040,3.2078,2993.8,2993.7,1e-08]
[1763587409236,2.86347,2994.2,2993.7,1e-08]
[1763587409437,3.2078,2996.0,2994.1,3.74947]
[1763587409739,3.2078,2996.2,2995.3,3.2078]
[1763587410242,3.2078,2995.9,2995.0,3.2078]
[1763587410438,0.00500809,2995.7,2995.2,0.00500808]
[1763587410737,3.2078,2995.3,2995.2,0.00500808]
[1763587410938,3.2078,2995.3,2993.7,1e-08]
[1763587411129,3.2078,2994.7,2993.7,3.20780001]
[1763587411533,3.2078,2995.0,2993.7,3.20780001]
[1763587411733,3.2078,2994.7,2993.7,3.20780001]
[1763587412335,3.2078,2994.0,2993.7,1e-08]
[1763587413743,0.54172,2993.9,2993.7,1e-08]
[1763587413937,0.54173,2993.8,2993.7,1e-08]
[1763587414137,4.28953267,2993.8,2991.4,3.2078]
[1763587414331,3.2078,2992.2,2991.1,3.2078]
[1763587414535,0.00500809,2991.9,2991.1,3.2078]
[1763587414934,0.00500809,2991.9,2990.6,3.2078]
[1763587414935,3.2078,2991.6,2990.6,3.2078]
[1763587415135,3.2078,2991.0,2990.3,3.2078]
[1763587415343,3.2078,2991.0,2990.6,0.00400652]
[1763587415541,3.2078,2991.4,2990.6,0.00400652]
[1763587415843,3.2078,2990.7,2989.0,1.4741]
[1763587416032,3.2078,2989.6,2989.0,1.4741]
[1763587416637,3.2078,2989.9,2989.0,1.47773871]
[1763587416836,3.2078,2989.8,2989.0,1.47773871]
[1763587417040,3.2078,2989.5,2989.0,1.47773871]
[1763587417236,3.2078,2989.2,2989.0,0.00363871]
[1763587417436,3.75036,2989.2,2987.6,1.4285]
[1763587417637,3.2078,2988.1,2987.6,1.4285]
[1763587417843,0.00501697,2988.1,2987.7,3.2078]
[1763587418145,3.2078,2987.8,2986.3,3.2078]
[1763587418342,3.2078,2987.8,2987.0,3.2078]
[1763587418648,1.876,2989.8,2986.4,3.6185604]
[1763587418649,3.2078,2988.7,2987.6,4.6363]
[1763587418951,3.2078,2988.9,2988.0,3.2078]
[1763587419245,3.2078,2988.8,2988.0,3.2078]
[1763587419444,0.00501697,2988.7,2988.1,3.21281697]
[1763587419943,3.2078,2988.2,2988.1,0.00501697]
[1763587420145,3.2078,2988.2,2986.8,3.2078]
[1763587420335,3.2078,2987.3,2986.6,3.2078]
[1763587420844,3.2078,2987.6,2986.6,3.2078]
[1763587421035,3.2078,2987.6,2986.3,3.21111489]
[1763587421240,3.2078,2987.3,2986.5,3.2078]
[1763587421441,3.2078,2987.3,2986.3,0.00331489]
[1763587421442,0.00501697,2987.2,2986.4,3.2078]
[1763587421748,3.2078,2987.0,2986.3,0.00331489]
[1763587421948,0.00501697,2987.2,2986.3,0.00331489]
[1763587421949,3.2078,2986.7,2986.3,0.00331489]
[1763587422138,0.00387811,2986.7,2986.3,0.00331489]
[1763587422446,0.00387811,2986.7,2986.6,3.2078]
[1763587422645,0.00387811,2986.7,2986.3,3.21111489]
[1763587422846,0.00387811,2986.7,2986.6,3.2078]
[1763587423148,0.00387811,2986.7,2986.3,0.00331489]
[1763587423347,0.00387811,2986.7,2986.6,3.2078]
[1763587423647,0.00501697,2987.2,2986.6,3.2078]
[1763587423946,0.00501697,2987.2,2986.9,3.2078]
[1763587424448,0.00867391,2987.2,2986.8,3.2078]
[1763587424651,3.2078,2988.5,2987.1,3.75074]
[1763587424837,3.2078,2988.2,2987.6,3.2078]
[1763587425038,3.2078,2988.2,2987.4,3.2078]
[1763587425446,3.2078,2987.9,2987.0,3.2078]
[1763587425640,0.00501697,2987.7,2987.2,0.00501697]
[1763587425839,0.00501697,2987.7,2987.3,3.2078]
[1763587426041,0.00501697,2987.7,2987.6,4.6363]
[1763587426242,3.21281697,2987.7,2987.2,0.00501697]
[1763587426545,3.2078,2987.3,2987.2,0.00501697]
[1763587426751,3.2078,2987.3,2986.3,0.00331489]
[1763587426941,3.2078,2987.4,2986.8,3.2078]
[1763587427140,3.2078,2987.4,2986.6,3.2078]
[1763587427747,3.2078,2987.1,2986.3,3.21111489]
[1763587427949,0.54315,2986.0,2984.0,3.2078]
[1763587428141,3.2078,2985.3,2984.5,3.2078]
[1763587428337,0.00501697,2985.3,2984.3,3.2078]
[1763587428536,3.2078,2984.6,2983.9,3.2078]
[1763587428741,3.2078,2985.0,2984.2,3.2078]
[1763587428950,3.2078,2984.9,2984.2,3.2078]
[1763587429145,3.2078,2984.9,2984.2,3.21024773]
[1763587429352,3.2078,2984.6,2984.2,0.00244773]
[1763587429652,0.00380674,2985.0,2984.5,3.2078]
[1763587429845,0.00501697,2985.3,2984.9,3.2078]
[1763587430043,0.00501697,2985.3,2984.2,0.00244773]
[1763587430245,3.2078,2984.8,2984.2,0.00244773]
[1763587430845,3.2078,2984.4,2984.2,0.00244773]
[1763587431046,0.0033483,2984.4,2984.2,0.00244773]
[1763587431249,0.0033483,2984.4,2984.3,3.2078]
[1763587431450,0.54361,2983.4,2983.3,1.39803]
[1763587431652,0.54361,2983.4,2979.3,0.54436]
[1763587431653,3.2078,2983.4,2981.4,6.8263604]
[1763587431945,0.00502562,2983.6,2982.6,3.2078]
[1763587432151,0.00502562,2983.6,2982.2,1.4285]
[1763587432152,3.2078,2983.4,2982.2,1.4285]
[1763587432346,3.2078,2983.0,2982.2,1.4285]
[1763587432541,3.2078,2983.0,2982.2,1.432097]
[1763587432743,3.21282562,2983.6,2982.3,3.2078]
[1763587432945,3.2078,2983.2,2982.5,0.54378]
[1763587433149,3.2078,2983.5,2982.6,3.2078]
[1763587433454,3.2078,2983.5,2982.7,4.1623004]
[1763587433654,0.00502562,2983.6,2983.2,3.2078]
[1763587433949,0.00502562,2983.6,2983.5,3.2078]
[1763587434141,0.00502562,2983.6,2983.5,4.6363]
[1763587434341,2.562e-05,2983.6,2983.5,1.4285]
[1763587434542,2.562e-05,2983.6,2983.5,7.9721]
[1763587434946,2.86985,2986.5,2986.2,3.397]
[1763587435150,3.2078,2991.5,2990.4,0.54233]
[1763587435349,1.0743,2992.6,2990.9,3.6185604]
[1763587435749,1.0743,2992.6,2990.8,0.54227]
[1763587435956,0.00501655,2992.0,2991.4,0.00501655]
[1763587436155,1.07814086,2992.6,2991.0,3.46052695]
[1763587436456,1.07814086,2992.6,2992.5,3.2078]
[1763587436646,1.07814086,2992.6,2992.5,3.06887583]
[1763587436956,6.0,2992.5,2990.8,0.00254273]
[1763587437143,3.2078,2992.1,2991.4,0.00501655]
[1763587437352,0.00501655,2991.9,2991.0,3.2078]
[1763587437656,0.00501655,2991.9,2991.3,3.2078]
[1763587437849,0.00501655,2991.9,2991.0,3.2078]
[1763587438050,0.00501655,2991.9,2990.8,0.00254273]
[1763587438051,3.21281655,2991.9,2990.8,0.00254273]
[1763587438250,3.2078,2991.6,2990.8,0.00254273]
[1763587438654,3.21281655,2991.9,2991.1,3.2078]
[1763587439052,3.2078,2991.5,2990.8,0.00254273]
[1763587439455,0.00501655,2991.9,2990.8,0.00254273]
[1763587439649,3.2078,2991.6,2990.8,0.00254273]
[1763587439851,3.21281655,2991.9,2990.8,0.00254273]
[1763587440158,0.00501655,2991.9,2991.6,3.2078]
[1763587441051,6.00501655,2991.9,2991.2,3.2078]
[1763587441252,3.2078,2991.7,2990.9,3.2078]
[1763587441459,0.00501655,2991.9,2991.2,3.2078]
[1763587441756,3.2078,2991.7,2990.9,3.2078]
[1763587441956,3.2078,2991.4,2990.8,0.00254273]
[1763587442154,0.00501655,2991.9,2990.8,0.00254273]
[1763587442155,3.2078,2991.7,2990.8,0.00254273]
[1763587442354,0.00501655,2991.9,2991.5,3.2078]
[1763587442761,0.00501655,2991.9,2991.2,3.2078]
[1763587443153,1.07814086,2992.6,2991.8,3.2078]
[1763587443154,0.00384086,2992.6,2991.8,3.2078]
[1763587443565,3.2078,2992.3,2991.3,3.2078]
[1763587443760,1.4588,2992.5,2991.6,3.2078]
[1763587443963,1.4588,2992.5,2991.9,3.2078]
[1763587444460,1.46381655,2992.5,2991.9,0.00501655]
[1763587444767,3.2078,2992.2,2991.9,0.00501655]
[1763587444960,3.2078,2992.2,2991.9,1.655e-05]
[1763587445761,3.2078,2992.1,2991.9,1.655e-05]
[1763587446060,3.6185604,2992.0,2991.9,1.655e-05]
[1763587446264,6.0,2992.0,2991.9,1.655e-05]
[1763587446864,3.2078,2992.1,2991.9,1.655e-05]
[1763587447469,3.2078,2992.0,2991.9,1.655e-05]
[1763587447672,3.2078,2992.2,2991.9,1.655e-05]
[1763587448062,1.46381655,2992.5,2991.9,1.655e-05]
[1763587448263,0.00501655,2992.5,2992.4,3.2078]
[1763587448464,0.00501655,2992.5,2992.0,3.2078]
[1763587448765,3.2078,2993.8,2992.3,3.2078]
[1763587448970,1.384,2993.9,2993.3,3.2078]
[1763587449158,3.6185604,2993.7,2992.9,3.2078]
[1763587449359,3.2078,2993.4,2992.5,3.2078]
[1763587449656,0.00501655,2993.2,2992.5,3.21134216]
[1763587450066,0.00501655,2993.2,2992.8,3.2078]
[1763587450762,3.2078,3000.7,2997.2,3.2078]
[1763587450965,1.4588,3003.0,2999.1,0.54075]
[1763587451166,3.0015857,3001.1,2998.8,0.54082]
[1763587451464,9.639,3001.2,2998.0,41.34096]
[1763587451768,0.00499825,2999.9,2999.3,0.00499825]
[1763587452168,3.0015857,3001.1,3000.7,3.20280175]
[1763587452365,0.00393932,3001.2,3000.7,3.20623704]
[1763587452668,0.00393932,3001.2,3000.7,3.21123529]
[1763587452965,0.00393932,3001.2,3001.1,3.2078]
[1763587453363,6.00393932,3001.2,3001.1,3.2078]
[1763587453563,6.00393932,3001.2,3001.1,2.1292369]
[1763587453863,6.00393932,3001.2,3000.4,3.2078]
[1763587454066,3.00552502,3001.2,3000.4,3.2078]
[1763587454364,6.2093857,3000.5,2999.0,3.2078]
[1763587454574,3.2078,2999.9,2999.0,3.2078]
[1763587454758,3.0015857,2999.1,2999.0,0.00390774]
[1763587454963,6.21245673,2999.1,2997.3,3.2078]
[1763587455158,3.2078,2997.4,2996.1,8.55327853]
[1763587455364,3.0015857,2997.5,2996.4,3.2078]
[1763587455663,0.54125,2996.5,2993.7,3.2078]
[1763587455967,0.00500734,2995.4,2994.8,0.00500734]
[1763587456164,0.00500734,2995.4,2994.9,5.34547853]
[1763587456867,3.21036695,2996.5,2995.3,3.2078]
[1763587457075,3.21036695,2996.5,2995.8,3.2078]
[1763587457370,3.2078,2998.1,2996.5,0.00390774]
[1763587457564,3.2078,2998.1,2997.2,3.2078]
[1763587457771,6.2093857,2998.8,2997.3,3.2078]
[1763587458068,3.00659304,2998.3,2997.8,0.00500734]
[1763587458261,3.0015857,2997.8,2997.3,0.00390774]
[1763587458468,3.2078,2997.4,2997.3,0.00390774]
[1763587458972,0.00797206,2998.3,2996.5,3.2078]
[1763587458973,3.2078,2998.0,2996.5,3.2078]
[1763587459274,3.2078,2997.6,2997.0,0.00500734]
[1763587459770,3.2078,2998.2,2997.2,3.2078]
[1763587459967,3.2078,2998.1,2997.2,3.2078]
[1763587460476,3.2078,2998.1,2997.2,3.21170774]
[1763587460971,3.2078,2998.1,2997.3,0.00390774]
[1763587461171,3.2078,2998.1,2997.2,3.21170774]
[1763587461769,3.2078,2998.1,2997.2,3.2078]
[1763587461965,3.2078,2997.5,2997.0,0.00500734]
[1763587462168,6.2093857,2997.1,2995.1,3.2078]
[1763587462370,3.2078,2995.9,2995.1,3.2078]
[1763587462564,0.00341902,2995.9,2995.8,3.21020724]
[1763587462769,0.00341902,2995.9,2995.8,0.00240724]
[1763587463286,3.21121902,2995.9,2995.8,0.00240724]
[1763587463574,0.00341902,2995.9,2995.8,0.00240724]
[1763587464166,0.00341902,2995.9,2995.8,3.21020724]
[1763587464578,0.00341902,2995.9,2995.8,0.00240724]
[1763587465371,7.34e-06,2996.1,2996.0,0.54133]
[1763587465565,3.2078,2997.5,2995.9,6.0]
[1763587465765,3.2078,2996.5,2995.9,5.39584]
[1763587466481,0.00771751,2996.5,2996.0,3.2078]
[1763587466775,0.00771751,2996.5,2996.1,3.2078]
[1763587467273,3.2078,2996.2,2995.9,0.00801996]
[1763587467476,3.2078,2996.3,2996.0,5.39584]
[1763587467980,3.2078,2996.3,2995.9,0.00801996]
[1763587468180,3.2078,2996.3,2996.0,5.06803781]
[1763587468477,3.2078,2996.3,2994.6,3.2078]
[1763587468478,6.2093857,2996.3,2994.6,3.2078]
[1763587468674,3.2078,2995.7,2994.7,5.04933838]
[1763587469073,3.2078,2995.0,2993.8,3.2078]
[1763587469271,3.2078,2994.2,2993.3,5.04933838]
[1763587469475,0.00351763,2994.2,2993.3,5.05356603]
[1763587469675,0.00500734,2994.0,2993.9,3.2078]
[1763587470187,3.2078,2994.9,2993.9,3.2078]
[1763587470366,3.2078,2995.7,2994.7,3.2078]
[1763587470571,3.0015857,2997.6,2995.6,3.2078]
[1763587470776,1.4588,3000.0,2995.6,3.2078]
[1763587470777,4.3679857,2997.0,2995.6,3.2078]
[1763587470978,0.00500734,2996.6,2996.0,0.00500734]
[1763587471179,0.00500734,2996.6,2996.5,3.2078]
[1763587471570,7.59639065,2996.6,2996.2,1.83301341]
[1763587471879,3.0015857,2996.3,2995.6,0.00244687]
[1763587472074,3.0015857,2995.4,2994.1,3.2078]
[1763587472276,3.2078,2994.3,2993.3,3.2078]
[1763587472579,3.2078,2993.5,2992.4,3.2078]
[1763587472776,0.00500734,2993.2,2992.3,5.04081341]
[1763587472976,0.00927568,2993.2,2992.3,3.21154714]
[1763587473178,3.2078,2992.6,2992.4,1.83301341]
[1763587473483,3.2078,2992.9,2991.6,3.2078]
[1763587473679,3.2078,2991.7,2990.9,3.2078]
[1763587473870,3.2078,2991.3,2990.2,3.2078]
[1763587474075,3.2078,2991.1,2990.2,3.2078]
[1763587474275,3.0015857,2990.9,2990.3,1.83301341]
[1763587474879,0.00417393,2991.1,2990.5,3.2078]
[1763587475083,3.2078,2990.8,2990.3,1.83301341]
[1763587475778,3.21197393,2991.1,2990.3,1.83301341]
[1763587476173,3.2078,2991.0,2990.3,1.83301341]
[1763587476373,0.00417393,2991.1,2990.3,1.83301341]
[1763587476578,0.00417393,2991.1,2990.5,3.2078]
[1763587476781,3.2078,2992.0,2990.9,3.2078]
[1763587476983,3.2078,2992.3,2990.9,3.2078]
[1763587477174,3.0015857,2992.5,2991.2,3.2078]
[1763587477482,3.2078,2992.2,2991.5,3.2078]
[1763587477711,3.2078,2992.2,2990.5,1.82800607]
[1763587477712,3.2078,2996.8,2994.3,3.2078]
[1763587477880,3.2078,3001.6,2996.8,5.555]
[1763587478077,1.4083,3003.0,3001.1,3.0015857]
[1763587478678,0.00500409,3002.4,3000.5,3.0015857]
[1763587478873,9.63823119,3002.4,3000.5,0.00297579]
[1763587479074,6.4156,3001.7,2997.2,3.343]
[1763587479282,16.05383119,3002.4,2999.7,3.0015857]
[1763587479488,9.63823119,3002.4,2997.5,3.78361191]
[1763587479681,0.00500409,3000.2,2999.7,3.0015857]
[1763587479877,9.63,3002.4,3001.4,3.2078]
[1763587480081,9.63309002,3002.4,3002.3,3.2078]
[1763587480577,9.63309002,3002.4,3002.3,2.56348823]
[1763587480885,18.84089002,3002.4,3002.0,0.00500409]
[1763587481086,9.63309002,3002.4,3001.8,3.2078]
[1763587481288,12.84089002,3002.4,3001.7,3.2078]
[1763587481685,0.00309002,3002.4,3001.7,3.2078]
[1763587481881,0.00309002,3002.4,3002.2,3.2078]
[1763587482087,4.42210446,3002.3,3001.4,0.00358702]
[1763587482291,6.2093857,3001.8,3001.4,0.00358702]
[1763587482786,3.2078,3001.8,3000.5,3.2078]
[1763587482981,3.2078,3001.0,3000.0,3.2078]
[1763587483182,0.00500409,3000.8,3000.3,3.2078]
[1763587483381,0.00500409,3000.9,3000.3,3.2078]
[1763587483589,3.0015857,3000.4,2999.2,3.2078]
[1763587483789,9.62,3000.4,2999.2,3.21095155]
[1763587484086,1.4083,3000.6,2999.7,3.2078]
[1763587484293,3.2078,3000.7,2999.4,3.2078]
[1763587484487,4.4261782,3000.5,2999.4,3.2078]
[1763587484685,3.2078,3000.0,2999.4,3.2078]
[1763587484990,3.2078,2999.6,2998.4,3.2078]
[1763587485185,3.2078,2999.2,2998.1,3.2078]
[1763587485688,3.2078,2999.0,2998.1,3.2078]
[1763587485887,3.0015857,2998.8,2997.7,3.2078]
[1763587486090,3.2078,2998.5,2997.7,3.21015959]
[1763587486291,9.62300409,2999.3,2998.1,3.2078]
[1763587486596,0.00500409,2999.3,2998.5,3.2078]
[1763587486795,6.2093857,2998.6,2997.9,3.2078]
[1763587486988,3.2078,2998.4,2997.7,0.00235959]
[1763587487494,3.2078,2998.1,2997.7,0.00235959]
[1763587487988,3.0015857,2997.2,2995.6,3.2078]
[1763587488195,0.00500409,2996.7,2996.1,3.2078]
[1763587488489,0.00500409,2996.7,2995.3,0.54145]
[1763587488490,0.00500409,2996.7,2995.8,3.2078]
[1763587488887,0.00862066,2996.7,2995.8,3.21131719]
[1763587489088,0.00862066,2996.7,2996.4,3.2078]
[1763587489491,0.00862066,2996.7,2996.1,3.2078]
[1763587489685,0.00862066,2996.7,2995.8,3.21131719]
[1763587489890,0.00862066,2996.7,2995.8,0.00351719]
[1763587490097,3.2078,2996.4,2995.8,0.00351719]
[1763587490298,3.2078,2996.5,2995.8,0.00351719]
[1763587490491,3.2078,2996.5,2995.8,3.21131719]
[1763587490799,0.00862066,2996.7,2996.1,3.2078]
[1763587491290,3.21642066,2996.7,2996.1,3.2078]
[1763587491689,3.0015857,2996.3,2994.3,3.2078]
[1763587491895,3.2078,2995.4,2994.3,3.2078]
[1763587492096,0.00500409,2995.1,2994.3,3.2078]
[1763587492298,0.00500409,2995.1,2994.6,3.2078]
[1763587492798,3.2078,2995.7,2994.7,3.2078]
[1763587492995,3.2078,2995.8,2994.6,0.00392054]
[1763587493187,3.2078,2996.1,2994.7,3.2078]
[1763587493391,3.2078,2996.2,2994.7,3.74936]
[1763587493591,3.2078,2995.5,2994.6,0.00392054]
[1763587493792,3.21280409,2995.3,2994.8,0.00500409]
[1763587494301,3.2078,2995.1,2994.8,0.00500409]
[1763587494990,4.3604445,2995.0,2994.8,0.00500409]
[1763587495195,3.2078,2995.1,2994.8,0.00500409]
[1763587495390,3.2078,2994.8,2992.8,3.2078]
[1763587495589,3.0015857,2994.9,2992.8,3.2078]
[1763587495590,3.2078,2993.6,2992.8,3.2078]
[1763587495798,4.3604445,2994.7,2993.4,3.2078]
[1763587495987,3.2078,2994.6,2993.4,3.2078]
[1763587496194,3.2078,2994.0,2993.3,0.5418]
[1763587496396,3.2078,2993.7,2992.7,3.2078]
[1763587496592,3.2078,2993.7,2993.3,0.00415153]
[1763587496794,0.00500409,2993.9,2993.3,0.00415153]
[1763587496995,3.2078,2993.5,2993.3,0.00415153]
[1763587497389,0.00500409,2993.9,2993.4,3.2078]
[1763587497597,0.00500409,2993.9,2993.3,0.00415153]
[1763587498003,3.2078,2995.1,2994.2,0.54165]
[1763587498191,3.2078,2995.1,2993.9,3.2078]
[1763587498390,9.623,2995.5,2993.2,3.2078]
[1763587498391,3.0015857,2994.0,2993.2,3.2078]
[1763587498595,3.0015857,2994.0,2991.2,3.0015857]
[1763587498596,3.2078,2993.8,2992.1,3.2078]
[1763587498796,3.2078,2993.5,2992.1,3.2078]
[1763587498992,3.21280409,2993.1,2992.5,0.00500409]
[1763587499300,3.21280409,2993.1,2992.5,3.21280409]
[1763587499499,3.21685423,2993.1,2992.5,3.21525964]
[1763587500208,0.00905423,2993.1,2992.5,3.75721964]
[1763587500400,3.2078,2993.0,2992.5,0.00745964]
[1763587501707,3.2078,2992.6,2991.3,3.2078]
[1763587501902,3.2078,2992.2,2991.3,3.2078]
[1763587502406,3.2078,2991.9,2991.0,3.2078]
[1763587502901,3.2078,2991.2,2991.0,0.00249896]
[1763587503304,3.2078,2991.2,2989.9,3.2078]
[1763587503494,0.00501287,2991.7,2988.0,1.4524]
[1763587503495,3.2078,2990.3,2988.0,1.4524]
[1763587503697,0.00501287,2989.4,2988.9,3.2078]
[1763587504302,0.00858273,2989.4,2989.2,3.2078]
[1763587504504,3.2078,2990.7,2989.2,3.2078]
[1763587504701,3.2078,2990.7,2990.1,3.2078]
[1763587504900,3.2078,2991.6,2990.6,3.2078]
[1763587505202,3.2078,2992.9,2991.7,0.54209]
[1763587505403,3.2078,2992.9,2991.5,3.2078]
[1763587505404,3.2078,2992.5,2991.5,3.2078]
[1763587505612,0.00501287,2992.3,2991.7,0.00501287]
[1763587505800,3.2078,2992.2,2991.7,3.21281287]
[1763587505995,0.00501287,2992.3,2991.7,0.00501287]
[1763587506202,3.2078,2992.2,2991.7,0.00501287]
[1763587506604,0.00501287,2992.3,2991.7,0.00501287]
[1763587507103,3.2078,2992.2,2991.7,0.00501287]
[1763587507906,3.2078,2991.8,2991.7,0.00501287]
[1763587508508,3.2078,2991.8,2991.5,0.00272411]
[1763587509502,3.2078,2992.1,2991.5,0.00272411]
[1763587511202,3.2078,2991.8,2991.5,0.00272411]
[1763587512010,3.2078,2992.1,2991.5,0.00272411]
[1763587512306,3.2078,2990.9,2988.1,3.62640067]
[1763587512505,3.2078,2989.7,2989.0,1.99549]
[1763587512709,0.00501287,2989.8,2989.1,0.54257]
[1763587512897,3.2078,2989.6,2989.1,0.54257]
[1763587513103,3.21170488,2989.6,2989.1,0.00360307]
[1763587513298,3.2078,2989.3,2989.1,0.00360307]
[1763587514009,6.83420067,2989.3,2989.1,0.00109794]
[1763587514202,16.46820067,2989.3,2989.1,0.00109794]
[1763587514402,4.28639996,2989.2,2989.1,0.00109794]
[1763587514606,3.2078,2989.3,2989.1,0.00109794]
[1763587514815,9.2078,2989.3,2989.1,0.00109794]
[1763587515004,9.2078,2989.3,2988.0,1.4524]
[1763587515200,3.2078,2988.1,2987.1,3.2078]
[1763587515399,3.2078,2989.1,2987.7,3.2078]
[1763587515605,3.2078,2988.4,2988.0,0.54278]
[1763587516006,3.2078,2988.4,2988.0,0.54570974]
[1763587516206,3.2078,2988.4,2988.0,0.00292974]
[1763587516406,3.2078,2988.1,2988.0,0.00292974]
[1763587518710,0.00501287,2988.5,2988.0,6.00292974]
[1763587519011,3.2078,2989.0,2988.2,3.2078]
[1763587519211,3.2078,2989.4,2988.5,3.2078]
[1763587519412,3.2078,2989.4,2988.0,0.00292974]
[1763587519413,0.00390488,2989.6,2989.3,0.54254]
[1763587519813,0.00390488,2989.6,2989.3,6.0]
[1763587520111,0.00390488,2989.6,2988.7,4.6607]
[1763587520409,3.2078,2989.5,2988.7,4.6607]
[1763587520713,3.2078,2989.5,2989.3,0.54253]
[1763587520914,0.00390488,2989.6,2989.3,3.2078]
[1763587521211,3.2078,2990.4,2989.8,0.54244]
[1763587521408,3.2078,2990.4,2989.6,3.2078]
[1763587521615,3.2078,2990.9,2989.8,3.2078]
[1763587521906,3.2078,2990.6,2990.2,0.54236]
[1763587522108,3.21138405,2990.6,2990.2,0.54549753]
[1763587522410,3.21138405,2990.6,2990.2,0.00313753]
[1763587522802,3.2078,2990.3,2990.2,0.00313753]
[1763587523912,3.21138405,2990.6,2990.2,0.00313753]
[1763587524116,3.2078,2990.3,2990.2,0.00313753]
[1763587525412,0.00358405,2990.6,2990.2,0.00313753]
[1763587526012,3.2078,2990.4,2990.2,0.00313753]
[1763587527114,6.83420067,2990.4,2990.2,0.00313753]
[1763587527319,6.83420067,2990.4,2989.1,3.75037]
[1763587527520,3.2078,2989.6,2989.1,3.75037]
[1763587527721,3.2078,2989.3,2989.1,0.54257]
[1763587528021,3.2078,2989.3,2988.7,4.6607]
[1763587528220,3.2078,2989.6,2988.7,4.6607]
[1763587528522,3.62640067,2990.4,2988.9,0.00501287]